[Event "MČR v bleskovém šachu družstev 2019"]
[Site "Teplice, Czech Republic"]
[Date "2019.09.14"]
[Round "14.26"]
[White "Vltavsky, Vladimir"]
[Black "Nemec, Jachym"]
[Result "1-0"]
[TimeControl "3 mim. + 2 s"]
[BlackFideId "23716525"]
[WhiteElo "2252"]
[BlackElo "2033"]

1. e4 {[%clk 00:03:02]} {[%emt 00:00:01]} c5 {[%clk 00:03:04]} 2. Nf3 {[%clk
00:03:03]} {[%emt 00:00:02]} e6 {[%clk 00:03:05]} 3. c3 {[%clk 00:03:04]} d5
{[%clk 00:03:05]} {[%emt 00:00:03]} 4. exd5 {[%clk 00:03:05]} exd5 {[%emt
00:00:01]} 5. d4 Nc6 {[%clk 00:03:06]} {[%emt 00:00:02]} 6. Bb5 {[%clk
00:03:08]} {[%emt 00:00:03]} a6 {[%clk 00:02:58]} {[%emt 00:00:08]} 7. Ba4
{[%clk 00:03:08]} b5 {[%clk 00:02:56]} {[%emt 00:00:05]} 8. Bc2 {[%clk
00:03:09]} Nf6 {[%clk 00:02:54]} {[%emt 00:00:05]} 9. O-O {[%clk 00:03:10]}
{[%emt 00:00:01]} Be7 {[%clk 00:02:54]} {[%emt 00:00:01]} 10. h3 {[%clk
00:03:11]} O-O {[%emt 00:00:03]} 11. a4 b4 {[%clk 00:02:49]} {[%emt 00:00:07]}
12. dxc5 {[%clk 00:03:06]} {[%emt 00:00:09]} Bxc5 {[%clk 00:02:48]} {[%emt
00:00:04]} 13. Nbd2 {[%clk 00:03:07]} bxc3 {[%clk 00:02:45]} {[%emt 00:00:04]}
14. bxc3 {[%clk 00:03:08]} {[%emt 00:00:01]} Ba7 {[%clk 00:02:28]} {[%emt
00:00:19]} 15. Nb3 {[%clk 00:03:09]} {[%emt 00:00:02]} Be6 {[%clk 00:02:25]}
{[%emt 00:00:04]} 16. Nfd4 {[%clk 00:03:09]} {[%emt 00:00:02]} Nxd4 {[%clk
00:02:20]} {[%emt 00:00:07]} 17. Nxd4 {[%clk 00:03:10]} {[%emt 00:00:01]} Rc8
{[%clk 00:02:06]} {[%emt 00:00:16]} 18. Ra3 {[%clk 00:03:08]} {[%emt 00:00:04]}
Bc5 {[%clk 00:01:59]} {[%emt 00:00:09]} 19. Rb3 {[%clk 00:03:06]} {[%emt
00:00:04]} Qc7 {[%clk 00:01:53]} {[%emt 00:00:06]} 20. Bg5 {[%clk 00:03:03]}
{[%emt 00:00:08]} Nd7 {[%clk 00:01:30]} {[%emt 00:00:24]} 21. Qd3 {[%clk
00:02:58]} {[%emt 00:00:07]} g6 {[%clk 00:01:19]} {[%emt 00:00:13]} 22. Rfb1
{[%clk 00:02:57]} {[%emt 00:00:03]} Ne5 {[%clk 00:01:14]} {[%emt 00:00:07]} 23.
Qg3 {[%clk 00:02:39]} {[%emt 00:00:20]} Bxd4 {[%clk 00:01:02]} {[%emt
00:00:15]} 24. cxd4 {[%clk 00:02:40]} Qxc2 {[%clk 00:01:00]} {[%emt 00:00:04]}
25. dxe5 {[%clk 00:02:40]} {[%emt 00:00:02]} d4 {[%clk 00:00:52]} {[%emt
00:00:10]} 26. Rb6 {[%clk 00:02:31]} {[%emt 00:00:10]} d3 {[%clk 00:00:47]}
{[%emt 00:00:07]} 27. Qf4 {[%clk 00:02:13]} {[%emt 00:00:20]} Rfe8 {[%clk
00:00:36]} {[%emt 00:00:13]} 28. Bh6 {[%clk 00:02:11]} {[%emt 00:00:05]} f5
{[%clk 00:00:29]} {[%emt 00:00:08]} 29. exf6 {[%clk 00:02:07]} {[%emt
00:00:07]} Bf7 {[%clk 00:00:28]} {[%emt 00:00:03]} 30. Rb7 {[%clk 00:02:02]}
{[%emt 00:00:06]} Rc4 {[%clk 00:00:18]} {[%emt 00:00:12]} 31. Qd6 {[%clk
00:01:46]} {[%emt 00:00:18]} Rce4 {[%clk 00:00:13]} {[%emt 00:00:07]} 32. Be3
{[%clk 00:01:38]} {[%emt 00:00:10]} R4e6 {[%clk 00:00:12]} {[%emt 00:00:03]} 33.
Qd7 {[%clk 00:01:36]} {[%emt 00:00:04]} Rxf6 {[%clk 00:00:08]} {[%emt
00:00:07]} 34. Bd4 {[%clk 00:01:21]} {[%emt 00:00:16]} Rfe6 {[%clk 00:00:08]}
{[%emt 00:00:03]} 35. Qxf7# {[%clk 00:01:20]} {[%emt 00:00:03]} 1-0

[Event "MČR v bleskovém šachu družstev 2019"]
[Site "Teplice, Czech Republic"]
[Date "2019.09.14"]
[Round "14.27"]
[White "Smolik, Jachym"]
[Black "Marsalek, Zdenek"]
[Result "0-1"]
[TimeControl "3 mim. + 2 s"]
[WhiteFideId "23701641"]
[WhiteElo "1873"]
[BlackElo "2272"]

1. e4 {[%clk 00:03:04]} d6 {[%clk 00:03:03]} {[%emt 00:00:02]} 2. d4 {[%clk
00:03:04]} {[%emt 00:00:01]} Nf6 {[%clk 00:03:03]} {[%emt 00:00:02]} 3. Nc3
{[%clk 00:03:05]} {[%emt 00:00:02]} e5 {[%clk 00:03:04]} 4. dxe5 {[%clk
00:03:02]} {[%emt 00:00:07]} dxe5 {[%clk 00:03:05]} 5. Qxd8+ {[%clk 00:03:03]}
Kxd8 {[%clk 00:03:06]} {[%emt 00:00:01]} 6. Bg5 {[%clk 00:03:03]} {[%emt
00:00:01]} Be6 {[%clk 00:03:06]} {[%emt 00:00:02]} 7. Nf3 {[%clk 00:02:59]}
{[%emt 00:00:06]} Nbd7 {[%clk 00:03:03]} {[%emt 00:00:06]} 8. O-O-O {[%clk
00:02:53]} {[%emt 00:00:07]} Kc8 {[%clk 00:03:04]} 9. Bxf6 {[%clk 00:02:20]}
{[%emt 00:00:37]} gxf6 {[%clk 00:03:03]} {[%emt 00:00:02]} 10. Nd5 {[%clk
00:02:21]} Bc5 {[%clk 00:02:58]} {[%emt 00:00:08]} 11. Rd2 {[%clk 00:02:12]}
{[%emt 00:00:12]} Rg8 {[%clk 00:02:56]} {[%emt 00:00:04]} 12. g3 {[%clk
00:02:12]} {[%emt 00:00:01]} c6 {[%clk 00:02:53]} {[%emt 00:00:04]} 13. Ne3
{[%clk 00:02:00]} {[%emt 00:00:15]} b5 {[%clk 00:02:48]} {[%emt 00:00:07]} 14.
Nh4 {[%clk 00:01:47]} {[%emt 00:00:14]} Kc7 {[%clk 00:02:43]} {[%emt 00:00:08]}
15. Nef5 {[%clk 00:01:46]} {[%emt 00:00:04]} a5 {[%clk 00:02:41]} {[%emt
00:00:03]} 16. Bg2 {[%clk 00:01:25]} {[%emt 00:00:23]} Bxa2 {[%clk 00:02:36]}
{[%emt 00:00:08]} 17. Rhd1 {[%clk 00:01:09]} {[%emt 00:00:18]} Be6 {[%clk
00:02:35]} {[%emt 00:00:02]} 18. Nh6 {[%clk 00:01:04]} {[%emt 00:00:07]} Rgf8
{[%clk 00:02:27]} {[%emt 00:00:10]} 19. N4f5 {[%clk 00:00:47]} {[%emt
00:00:19]} Nb6 {[%clk 00:02:26]} {[%emt 00:00:04]} 20. Ng4 {[%clk 00:00:46]}
{[%emt 00:00:02]} a4 {[%clk 00:02:18]} {[%emt 00:00:10]} 21. Nxf6 {[%clk
00:00:29]} {[%emt 00:00:20]} a3 {[%clk 00:02:16]} {[%emt 00:00:03]} 22. bxa3
{[%clk 00:00:27]} {[%emt 00:00:05]} Rxa3 {[%clk 00:02:08]} {[%emt 00:00:10]} 23.
c3 {[%clk 00:00:18]} {[%emt 00:00:10]} Nc4 {[%clk 00:02:00]} {[%emt 00:00:10]}
24. Rd7+ {[%clk 00:00:08]} {[%emt 00:00:13]} Bxd7 {[%clk 00:01:55]} {[%emt
00:00:07]} 25. Rxd7+ {[%clk 00:00:06]} {[%emt 00:00:03]} Kb6 {[%clk 00:01:55]}
{[%emt 00:00:02]} 26. Kc2 {[%clk 00:00:03]} {[%emt 00:00:07]} Ra2+ {[%emt
00:00:04]} 27. Kc1 Rfa8 {[%clk 00:01:49]} {[%emt 00:00:04]} 28. Kd1 {[%clk
00:00:04]} {[%emt 00:00:03]} Rxf2 {[%clk 00:01:47]} {[%emt 00:00:03]} 29. Bh3
{[%clk 00:00:03]} {[%emt 00:00:03]} Ra1# {[%clk 00:01:47]} {[%emt 00:00:02]}
0-1

[Event "MČR v bleskovém šachu družstev 2019"]
[Site "Teplice, Czech Republic"]
[Date "2019.09.14"]
[Round "14.28"]
[White "Duran, Tomas"]
[Black "Day, Tobias"]
[Result "1-0"]
[TimeControl "3 mim. + 2 s"]
[BlackFideId "397709"]
[WhiteElo "2135"]
[BlackElo "1839"]

1. e4 {[%clk 00:03:02]} {[%emt 00:02:00]} c5 {[%clk 00:03:04]} 2. Nf3 {[%clk
00:03:02]} {[%emt 00:00:02]} g6 {[%clk 00:03:04]} {[%emt 00:00:02]} 3. Be2
{[%clk 00:02:57]} {[%emt 00:00:07]} Bg7 {[%clk 00:03:04]} {[%emt 00:00:01]} 4.
O-O {[%clk 00:02:57]} {[%emt 00:00:02]} Nc6 {[%clk 00:03:05]} 5. c3 {[%clk
00:02:57]} {[%emt 00:00:03]} d5 {[%clk 00:02:41]} {[%emt 00:00:24]} 6. exd5
{[%clk 00:02:46]} {[%emt 00:00:14]} Qxd5 {[%clk 00:02:41]} {[%emt 00:00:02]} 7.
Na3 {[%clk 00:02:46]} {[%emt 00:00:01]} Nf6 {[%clk 00:02:17]} {[%emt 00:00:26]}
8. d3 {[%clk 00:02:41]} {[%emt 00:00:08]} O-O {[%clk 00:02:14]} {[%emt
00:00:05]} 9. h3 {[%clk 00:02:42]} {[%emt 00:00:02]} Rd8 {[%clk 00:02:09]}
{[%emt 00:00:05]} 10. Qc2 {[%clk 00:02:41]} {[%emt 00:00:04]} Bf5 {[%clk
00:01:38]} {[%emt 00:00:32]} 11. Rd1 {[%clk 00:02:42]} {[%emt 00:00:02]} a6
{[%clk 00:01:32]} {[%emt 00:00:08]} 12. Be3 {[%clk 00:02:37]} {[%emt 00:00:06]}
b5 {[%clk 00:01:20]} {[%emt 00:00:15]} 13. c4 {[%clk 00:02:30]} {[%emt
00:00:09]} bxc4 {[%clk 00:01:13]} {[%emt 00:00:09]} 14. Qxc4 {[%clk 00:02:29]}
{[%emt 00:00:03]} Qxc4 {[%clk 00:01:13]} {[%emt 00:00:01]} 15. Nxc4 {[%clk
00:02:29]} {[%emt 00:00:03]} Nd4 {[%clk 00:01:04]} {[%emt 00:00:11]} 16. Bxd4
{[%clk 00:01:57]} {[%emt 00:00:34]} cxd4 {[%clk 00:01:05]} {[%emt 00:00:01]} 17.
Nfe5 {[%clk 00:01:55]} {[%emt 00:00:05]} Rac8 {[%clk 00:00:56]} {[%emt
00:00:10]} 18. Bf3 {[%clk 00:01:41]} {[%emt 00:00:15]} Be6 {[%clk 00:00:55]}
{[%emt 00:00:04]} 19. b3 {[%clk 00:01:41]} {[%emt 00:00:03]} Nd5 {[%emt
00:00:08]} 20. Bxd5 {[%clk 00:01:27]} {[%emt 00:00:15]} Bxd5 {[%clk 00:00:50]}
{[%emt 00:00:01]} 21. Nf3 {[%clk 00:01:23]} {[%emt 00:00:07]} Bxf3 {[%clk
00:00:41]} {[%emt 00:00:11]} 22. gxf3 {[%clk 00:01:24]} Rc5 {[%clk 00:00:36]}
{[%emt 00:00:07]} 23. Re1 {[%clk 00:01:22]} {[%emt 00:00:03]} e6 {[%clk
00:00:34]} {[%emt 00:00:04]} 24. Kf1 {[%clk 00:01:20]} {[%emt 00:00:04]} Rh5
{[%clk 00:00:33]} {[%emt 00:00:03]} 25. Kg2 {[%clk 00:01:20]} {[%emt 00:00:02]}
Rg5+ {[%clk 00:00:33]} {[%emt 00:00:02]} 26. Kf1 {[%clk 00:01:21]} Rf5 {[%clk
00:00:32]} {[%emt 00:00:03]} 27. Ke2 {[%clk 00:01:17]} {[%emt 00:00:06]} Bh6
{[%clk 00:00:31]} {[%emt 00:00:04]} 28. Rad1 {[%clk 00:01:04]} {[%emt
00:00:15]} Rh5 {[%clk 00:00:30]} {[%emt 00:00:02]} 29. Rh1 {[%clk 00:01:05]}
Rf5 {[%clk 00:00:20]} {[%emt 00:00:13]} 30. h4 {[%clk 00:01:06]} {[%emt
00:00:02]} Rf4 {[%clk 00:00:18]} {[%emt 00:00:03]} 31. Rdg1 {[%clk 00:01:06]}
{[%emt 00:00:02]} Kf8 {[%clk 00:00:14]} {[%emt 00:00:05]} 32. Rg4 {[%clk
00:01:08]} Rf5 {[%clk 00:00:10]} {[%emt 00:00:06]} 33. h5 {[%clk 00:00:47]}
{[%emt 00:00:23]} g5 {[%clk 00:00:05]} {[%emt 00:00:07]} 34. Rc1 {[%clk
00:00:43]} {[%emt 00:00:06]} Ke7 {[%clk 00:00:05]} {[%emt 00:00:03]} 35. Na5
{[%clk 00:00:40]} {[%emt 00:00:04]} Kf6 {[%clk 00:00:04]} {[%emt 00:00:03]} 36.
Rc7 {[%clk 00:00:38]} {[%emt 00:00:04]} Rxa5 {[%clk 00:00:00]} {[%emt
00:00:04]} 37. a4 {[%clk 00:00:38]} {[%emt 00:00:05]} Rad5 {[%clk 00:00:00]}
{[%emt 00:00:01]} 38. Rg1 {[%clk 00:00:38]} {[%emt 00:00:05]} Re5+ {[%clk
00:00:00]} 39. Kd1 {[%emt 00:00:04]} Rb8 {[%clk 00:00:00]} 40. Kc2 {[%clk
00:00:38]} {[%emt 00:00:01]} Re2+ {[%emt 00:00:02]} 41. Kd1 {[%clk 00:00:38]}
{[%emt 00:00:02]} Rb2 {[%clk 00:03:02]} 1-0

[Event "MČR v bleskovém šachu družstev 2019"]
[Site "Teplice, Czech Republic"]
[Date "2019.09.14"]
[Round "15.1"]
[White "Sprenar, Petr"]
[Black "Kociscak, Jiri"]
[Result "1-0"]
[TimeControl "3 mim. + 2 s"]
[BlackTitle "IM"]
[WhiteFideId "397164"]
[BlackFideId "322121"]
[WhiteElo "2173"]
[BlackElo "2417"]

1. d4 {[%clk 00:03:03]} d5 {[%clk 00:03:02]} {[%emt 00:00:02]} 2. c4 {[%clk
00:03:03]} {[%emt 00:00:01]} e6 {[%clk 00:03:03]} 3. Nf3 {[%clk 00:03:04]}
{[%emt 00:00:03]} c5 {[%clk 00:03:04]} 4. g3 {[%clk 00:03:04]} {[%emt
00:00:02]} Nc6 {[%clk 00:03:00]} {[%emt 00:00:06]} 5. Bg2 {[%clk 00:03:04]}
{[%emt 00:00:01]} Nf6 {[%clk 00:03:01]} {[%emt 00:00:01]} 6. O-O {[%clk
00:03:04]} {[%emt 00:00:02]} Be7 {[%clk 00:02:48]} {[%emt 00:00:15]} 7. dxc5
{[%clk 00:03:04]} {[%emt 00:00:03]} Bxc5 {[%clk 00:02:48]} {[%emt 00:00:02]} 8.
cxd5 {[%clk 00:02:59]} {[%emt 00:00:07]} exd5 {[%clk 00:02:48]} {[%emt
00:00:01]} 9. a3 {[%clk 00:02:55]} {[%emt 00:00:07]} a6 {[%clk 00:02:39]}
{[%emt 00:00:11]} 10. b4 {[%clk 00:02:55]} {[%emt 00:00:02]} Ba7 {[%clk
00:02:39]} {[%emt 00:00:02]} 11. Bb2 {[%clk 00:02:56]} {[%emt 00:00:01]} O-O
{[%clk 00:02:36]} {[%emt 00:00:05]} 12. Nd4 {[%clk 00:02:54]} {[%emt 00:00:03]}
Ne5 {[%clk 00:02:15]} {[%emt 00:00:23]} 13. Ne6 {[%clk 00:02:13]} {[%emt
00:00:44]} fxe6 {[%clk 00:01:37]} {[%emt 00:00:40]} 14. Bxe5 {[%clk 00:02:13]}
{[%emt 00:00:02]} Ng4 {[%clk 00:01:38]} {[%emt 00:00:01]} 15. Bd4 {[%clk
00:02:11]} {[%emt 00:00:04]} Nxf2 {[%clk 00:01:33]} {[%emt 00:00:06]} 16. Qd2
{[%clk 00:01:19]} {[%emt 00:00:54]} Ne4 {[%clk 00:01:08]} {[%emt 00:00:27]} 17.
Rxf8+ {[%clk 00:01:15]} {[%emt 00:00:06]} Qxf8 {[%clk 00:01:09]} {[%emt
00:00:01]} 18. Bxe4 {[%clk 00:01:13]} {[%emt 00:00:04]} Qf6 {[%clk 00:00:49]}
{[%emt 00:00:22]} 19. Bxa7 {[%clk 00:00:52]} {[%emt 00:00:23]} Qxa1 {[%clk
00:00:48]} {[%emt 00:00:02]} 20. Bd4 {[%clk 00:00:51]} {[%emt 00:00:03]} Qxd4+
{[%clk 00:00:44]} {[%emt 00:00:06]} 21. Qxd4 {[%clk 00:00:52]} {[%emt
00:00:02]} dxe4 {[%clk 00:00:45]} {[%emt 00:00:01]} 22. Qd8+ {[%clk 00:00:52]}
{[%emt 00:00:01]} Kf7 {[%clk 00:00:46]} 23. Nc3 {[%clk 00:00:53]} {[%emt
00:00:03]} b5 {[%clk 00:00:45]} {[%emt 00:00:03]} 24. Nxe4 {[%clk 00:00:51]}
{[%emt 00:00:03]} 1-0

[Event "MČR v bleskovém šachu družstev 2019"]
[Site "Teplice, Czech Republic"]
[Date "2019.09.14"]
[Round "15.2"]
[White "Polak, Tomas"]
[Black "Lorenc, Tomas"]
[Result "1-0"]
[TimeControl "3 mim. + 2 s"]
[WhiteTitle "GM"]
[WhiteFideId "300560"]
[BlackFideId "313203"]
[WhiteElo "2510"]
[BlackElo "2094"]

1. d4 {[%clk 00:03:02]} {[%emt 00:00:01]} Nf6 {[%emt 00:00:01]} 2. c4 c5 {[%clk
00:03:04]} {[%emt 00:00:01]} 3. d5 {[%clk 00:03:05]} b5 {[%clk 00:03:05]}
{[%emt 00:00:01]} 4. cxb5 {[%clk 00:03:06]} {[%emt 00:00:01]} a6 {[%clk
00:03:06]} {[%emt 00:00:01]} 5. bxa6 {[%clk 00:03:07]} Bxa6 {[%clk 00:03:07]}
{[%emt 00:00:02]} 6. Nc3 {[%clk 00:03:07]} {[%emt 00:00:01]} d6 {[%clk
00:03:07]} {[%emt 00:00:02]} 7. g3 {[%clk 00:03:07]} {[%emt 00:00:02]} Nbd7
{[%clk 00:03:05]} {[%emt 00:00:03]} 8. Bg2 {[%clk 00:03:09]} g6 {[%clk
00:03:06]} 9. Nf3 {[%clk 00:03:10]} Bg7 {[%clk 00:03:07]} {[%emt 00:00:04]} 10.
O-O {[%clk 00:03:04]} {[%emt 00:00:08]} O-O {[%clk 00:03:07]} {[%emt 00:00:02]}
11. Rb1 {[%clk 00:03:04]} {[%emt 00:00:02]} Qa5 {[%clk 00:03:07]} {[%emt
00:00:02]} 12. Qc2 {[%clk 00:03:03]} {[%emt 00:00:04]} Rfb8 {[%clk 00:03:06]}
{[%emt 00:00:03]} 13. Rd1 {[%clk 00:02:56]} {[%emt 00:00:09]} Ng4 {[%clk
00:02:59]} {[%emt 00:00:09]} 14. Bd2 {[%clk 00:02:51]} {[%emt 00:00:07]} Nge5
{[%clk 00:02:47]} {[%emt 00:00:15]} 15. Nxe5 {[%clk 00:02:48]} {[%emt
00:00:05]} Nxe5 {[%clk 00:02:48]} {[%emt 00:00:01]} 16. b3 {[%clk 00:02:48]}
{[%emt 00:00:02]} c4 {[%clk 00:02:34]} {[%emt 00:00:16]} 17. b4 {[%clk
00:02:41]} {[%emt 00:00:09]} Qa3 {[%clk 00:02:07]} {[%emt 00:00:24]} 18. b5
{[%clk 00:02:28]} {[%emt 00:00:20]} Bc8 {[%clk 00:01:57]} {[%emt 00:00:11]} 19.
b6 {[%clk 00:01:48]} {[%emt 00:00:42]} Bf5 {[%clk 00:01:53]} {[%emt 00:00:06]}
20. e4 {[%clk 00:01:48]} {[%emt 00:00:02]} Bg4 {[%clk 00:01:54]} {[%emt
00:00:01]} 21. Rf1 {[%clk 00:01:42]} {[%emt 00:00:08]} Nf3+ {[%clk 00:01:45]}
{[%emt 00:00:11]} 22. Bxf3 {[%clk 00:01:38]} {[%emt 00:00:06]} Bxf3 {[%clk
00:01:46]} 23. Rb2 {[%clk 00:01:19]} {[%emt 00:00:23]} Bxc3 {[%clk 00:01:02]}
{[%emt 00:00:46]} 24. Bxc3 {[%clk 00:01:15]} {[%emt 00:00:06]} Bxe4 {[%clk
00:01:01]} {[%emt 00:00:02]} 25. Qd2 {[%clk 00:01:11]} {[%emt 00:00:06]} Qc5
{[%clk 00:00:53]} {[%emt 00:00:08]} 26. b7 {[%clk 00:01:07]} {[%emt 00:00:09]}
Ra6 {[%clk 00:00:23]} {[%emt 00:00:31]} 27. Re1 {[%clk 00:01:05]} {[%emt
00:00:04]} Qxd5 {[%clk 00:00:13]} {[%emt 00:00:12]} 28. Qxd5 {[%clk 00:00:56]}
{[%emt 00:00:11]} Bxd5 {[%clk 00:00:14]} 29. Rxe7 {[%clk 00:00:58]} {[%emt
00:00:01]} Ra7 {[%clk 00:00:12]} {[%emt 00:00:04]} 30. Re8+ {[%clk 00:00:50]}
{[%emt 00:00:09]} Rxe8 {[%clk 00:00:05]} {[%emt 00:00:09]} 31. b8=Q {[%clk
00:00:50]} {[%emt 00:00:02]} Rae7 {[%clk 00:00:03]} {[%emt 00:00:04]} 32. Qb4
{[%clk 00:00:45]} {[%emt 00:00:07]} 1-0

[Event "MČR v bleskovém šachu družstev 2019"]
[Site "Teplice, Czech Republic"]
[Date "2019.09.14"]
[Round "15.3"]
[White "Spicka, Jan"]
[Black "Stocek, Jiri"]
[Result "0-1"]
[TimeControl "3 mim. + 2 s"]
[BlackTitle "GM"]
[WhiteFideId "366781"]
[BlackFideId "304760"]
[WhiteElo "1930"]
[BlackElo "2505"]

1. e4 {[%clk 00:03:03]} d6 {[%clk 00:03:02]} {[%emt 00:00:03]} 2. d4 {[%clk
00:03:04]} {[%emt 00:00:01]} Nf6 {[%clk 00:03:03]} 3. Nc3 {[%clk 00:03:05]}
{[%emt 00:00:01]} g6 {[%clk 00:03:04]} 4. Be3 {[%clk 00:03:05]} {[%emt
00:00:02]} a6 {[%clk 00:03:05]} {[%emt 00:00:01]} 5. f3 {[%clk 00:03:03]}
{[%emt 00:00:03]} b5 {[%clk 00:03:04]} {[%emt 00:00:03]} 6. a3 {[%clk
00:03:01]} {[%emt 00:00:05]} Nbd7 {[%clk 00:02:59]} {[%emt 00:00:07]} 7. Bd3
{[%clk 00:03:00]} {[%emt 00:00:03]} Bb7 {[%clk 00:02:56]} {[%emt 00:00:05]} 8.
Nge2 {[%clk 00:03:00]} {[%emt 00:00:02]} c5 {[%clk 00:02:56]} {[%emt 00:00:03]}
9. dxc5 {[%clk 00:02:52]} {[%emt 00:00:10]} dxc5 {[%clk 00:02:52]} {[%emt
00:00:05]} 10. Ng3 {[%clk 00:02:52]} {[%emt 00:00:02]} h5 {[%clk 00:02:48]}
{[%emt 00:00:06]} 11. O-O {[%clk 00:02:28]} {[%emt 00:00:26]} h4 {[%clk
00:02:49]} {[%emt 00:00:02]} 12. Nh1 {[%clk 00:02:29]} c4 {[%clk 00:02:41]}
{[%emt 00:00:10]} 13. Be2 {[%clk 00:02:30]} {[%emt 00:00:01]} e5 {[%clk
00:02:42]} {[%emt 00:00:01]} 14. Nf2 {[%clk 00:02:26]} {[%emt 00:00:06]} Qc7
{[%clk 00:02:42]} {[%emt 00:00:02]} 15. Nh3 {[%clk 00:02:22]} {[%emt 00:00:06]}
Bc5 {[%clk 00:02:42]} {[%emt 00:00:02]} 16. Bxc5 {[%clk 00:02:11]} {[%emt
00:00:13]} Nxc5 {[%clk 00:02:40]} {[%emt 00:00:03]} 17. Qd2 {[%clk 00:02:05]}
{[%emt 00:00:08]} Ne6 {[%clk 00:02:39]} {[%emt 00:00:03]} 18. Qe3 {[%clk
00:02:00]} {[%emt 00:00:07]} Qc5 {[%clk 00:02:29]} {[%emt 00:00:12]} 19. Qxc5
{[%clk 00:02:00]} {[%emt 00:00:02]} Nxc5 {[%clk 00:02:30]} {[%emt 00:00:01]} 20.
Rad1 {[%clk 00:01:56]} {[%emt 00:00:06]} Ke7 {[%clk 00:02:30]} {[%emt
00:00:02]} 21. a4 {[%clk 00:01:43]} {[%emt 00:00:15]} Bc6 {[%clk 00:02:28]}
{[%emt 00:00:04]} 22. axb5 {[%clk 00:01:39]} {[%emt 00:00:06]} axb5 {[%clk
00:02:28]} {[%emt 00:00:02]} 23. Ra1 {[%clk 00:01:39]} {[%emt 00:00:02]} Ne6
{[%clk 00:02:22]} {[%emt 00:00:08]} 24. b3 {[%clk 00:00:53]} {[%emt 00:00:49]}
Nd4 {[%clk 00:02:17]} {[%emt 00:00:07]} 25. bxc4 {[%clk 00:00:51]} {[%emt
00:00:04]} b4 {[%clk 00:02:17]} {[%emt 00:00:02]} 26. Nd5+ {[%clk 00:00:39]}
{[%emt 00:00:14]} Bxd5 {[%clk 00:02:16]} {[%emt 00:00:02]} 27. exd5 {[%clk
00:00:40]} {[%emt 00:00:01]} Nxe2+ {[%clk 00:02:15]} {[%emt 00:00:03]} 28. Kf2
{[%clk 00:00:41]} Nd4 {[%clk 00:02:11]} {[%emt 00:00:06]} 29. f4 {[%clk
00:00:31]} {[%emt 00:00:12]} Ng4+ {[%clk 00:02:03]} {[%emt 00:00:10]} 30. Kg1
{[%clk 00:00:24]} {[%emt 00:00:09]} Ne3 {[%clk 00:01:56]} {[%emt 00:00:09]} 31.
Rxa8 {[%clk 00:00:18]} {[%emt 00:00:09]} Rxa8 {[%clk 00:01:55]} {[%emt
00:00:03]} 32. Re1 {[%clk 00:00:18]} {[%emt 00:00:02]} Ndxc2 {[%clk 00:01:48]}
{[%emt 00:00:09]} 0-1

[Event "MČR v bleskovém šachu družstev 2019"]
[Site "Teplice, Czech Republic"]
[Date "2019.09.14"]
[Round "15.4"]
[White "Vymazal, Bronislav"]
[Black "Srba, Stanislav"]
[Result "1-0"]
[TimeControl "3 mim. + 2 s"]
[WhiteFideId "318396"]
[BlackFideId "364720"]
[WhiteElo "2309"]
[BlackElo "1883"]

1. e4 {[%clk 00:03:00]} {[%emt 00:00:04]} e6 {[%clk 00:03:03]} {[%emt
00:00:01]} 2. d4 {[%clk 00:03:00]} {[%emt 00:00:02]} d5 {[%clk 00:03:04]}
{[%emt 00:00:01]} 3. exd5 {[%clk 00:03:01]} {[%emt 00:00:01]} exd5 {[%clk
00:03:05]} {[%emt 00:00:01]} 4. c4 {[%clk 00:03:02]} Nf6 {[%clk 00:03:04]}
{[%emt 00:00:03]} 5. Nc3 {[%clk 00:03:03]} {[%emt 00:00:01]} Be6 {[%clk
00:03:02]} {[%emt 00:00:04]} 6. Nge2 {[%clk 00:02:35]} {[%emt 00:00:30]} g6
{[%clk 00:02:37]} {[%emt 00:00:27]} 7. Nf4 {[%clk 00:02:35]} {[%emt 00:00:02]}
Bg7 {[%clk 00:02:30]} {[%emt 00:00:09]} 8. cxd5 {[%clk 00:02:02]} {[%emt
00:00:34]} Bxd5 {[%clk 00:02:01]} {[%emt 00:00:31]} 9. Nfxd5 {[%clk 00:02:00]}
{[%emt 00:00:05]} Nxd5 {[%clk 00:02:00]} {[%emt 00:00:04]} 10. Qb3 {[%clk
00:01:58]} {[%emt 00:00:04]} Nxc3 {[%clk 00:01:24]} {[%emt 00:00:37]} 11. bxc3
{[%clk 00:01:58]} {[%emt 00:00:02]} Qe7+ {[%clk 00:01:01]} {[%emt 00:00:25]} 12.
Be2 {[%clk 00:01:58]} {[%emt 00:00:02]} c6 {[%clk 00:00:54]} {[%emt 00:00:09]}
13. Ba3 {[%clk 00:01:58]} {[%emt 00:00:02]} Qd7 {[%clk 00:00:47]} {[%emt
00:00:09]} 14. O-O {[%clk 00:01:45]} {[%emt 00:00:15]} Bf8 {[%clk 00:00:43]}
{[%emt 00:00:07]} 15. Rfe1 {[%clk 00:01:26]} {[%emt 00:00:21]} Kd8 {[%clk
00:00:20]} {[%emt 00:00:25]} 16. Bg4 {[%clk 00:00:13]} {[%emt 00:01:15]} Qxg4
{[%clk 00:00:09]} {[%emt 00:00:14]} 17. Bxf8 {[%clk 00:00:13]} {[%emt
00:00:01]} Rxf8 {[%clk 00:00:08]} {[%emt 00:00:03]} 18. Qxb7 {[%clk 00:00:14]}
{[%emt 00:00:01]} Qc8 {[%clk 00:00:03]} {[%emt 00:00:08]} 19. Qe7# {[%clk
00:00:14]} {[%emt 00:00:02]} 1-0